{"text_format":"3","workbook":"xlsx","n_sheets":1,"sheets":["تكاليف إعادة التصميم"],"not_rendered":{"images":2,"defined_names":4},"read":"whole","date_system":"1900"}

{"sheet":"تكاليف إعادة التصميم","index":0,"n_rows":28,"n_cols":8,"rows_kept":28,"merged":[[25,1,25,5],[26,1,26,5],[27,1,27,5]]}
[null,"ورقة العمل \"تكاليف إعادة تصميم المطبخ\""]
[]
[null,"الفئة","العناصر","المقاس","التكلفة المقدرة","التكلفة الفعلية","إجمالي التكلفة المقدرة","إجمالي التكلفة الفعلية"]
[null,"الخزانات","الخزانات الأرضية: تصميم نمطي قياسي (يُحدد القياس بوحدة القدم)",25,{"v":5,"d":"ر.س.‏ 5.00"},null,{"$f":"البيانات[[#This Row],[المقاس]]*البيانات[[#This Row],[التكلفة المقدرة]]","v":{"v":125,"d":"ر.س.‏ 125"}},{"$f":"البيانات[[#This Row],[المقاس]]*البيانات[[#This Row],[التكلفة الفعلية]]","v":{"v":0,"d":"ر.س.‏ 0"}}]
[null,"الخزانات","الخزانات العلوية: تصميم نمطي قياسي (يُحدد القياس بوحدة القدم)",25,{"v":3.5,"d":"ر.س.‏ 3.50"},null,{"$f":"البيانات[[#This Row],[المقاس]]*البيانات[[#This Row],[التكلفة المقدرة]]","v":{"v":87.5,"d":"ر.س.‏ 88"}},{"$f":"البيانات[[#This Row],[المقاس]]*البيانات[[#This Row],[التكلفة الفعلية]]","v":{"v":0,"d":"ر.س.‏ 0"}}]
[null,"أجهزة التنظيف","غسالة الأطباق: مقياس قياسي",1,{"v":250,"d":"ر.س.‏ 250.00"},null,{"$f":"البيانات[[#This Row],[المقاس]]*البيانات[[#This Row],[التكلفة المقدرة]]","v":{"v":250,"d":"ر.س.‏ 250"}},{"$f":"البيانات[[#This Row],[المقاس]]*البيانات[[#This Row],[التكلفة الفعلية]]","v":{"v":0,"d":"ر.س.‏ 0"}}]
[null,"أجهزة التنظيف","وحدة تصريف النفايات: مقياس قياسي",1,{"v":175,"d":"ر.س.‏ 175.00"},null,{"$f":"البيانات[[#This Row],[المقاس]]*البيانات[[#This Row],[التكلفة المقدرة]]","v":{"v":175,"d":"ر.س.‏ 175"}},{"$f":"البيانات[[#This Row],[المقاس]]*البيانات[[#This Row],[التكلفة الفعلية]]","v":{"v":0,"d":"ر.س.‏ 0"}}]
[null,"أجهزة الطهي","موقد الطهي: مقاس قياسي قابل للتركيب",1,{"v":375,"d":"ر.س.‏ 375.00"},null,{"$f":"البيانات[[#This Row],[المقاس]]*البيانات[[#This Row],[التكلفة المقدرة]]","v":{"v":375,"d":"ر.س.‏ 375"}},{"$f":"البيانات[[#This Row],[المقاس]]*البيانات[[#This Row],[التكلفة الفعلية]]","v":{"v":0,"d":"ر.س.‏ 0"}}]
[null,"أجهزة الطهي","ميكروويف: مقياس قياسي",1,{"v":300,"d":"ر.س.‏ 300.00"},null,{"$f":"البيانات[[#This Row],[المقاس]]*البيانات[[#This Row],[التكلفة المقدرة]]","v":{"v":300,"d":"ر.س.‏ 300"}},{"$f":"البيانات[[#This Row],[المقاس]]*البيانات[[#This Row],[التكلفة الفعلية]]","v":{"v":0,"d":"ر.س.‏ 0"}}]
[null,"الطاولات","سطح صلب (يُحدد القياس بوحدة القدم)",23,{"v":10,"d":"ر.س.‏ 10.00"},null,{"$f":"البيانات[[#This Row],[المقاس]]*البيانات[[#This Row],[التكلفة المقدرة]]","v":{"v":230,"d":"ر.س.‏ 230"}},{"$f":"البيانات[[#This Row],[المقاس]]*البيانات[[#This Row],[التكلفة الفعلية]]","v":{"v":0,"d":"ر.س.‏ 0"}}]
[null,"الأبواب","الجزء الداخلي: قلب صلب مكسو بقشرة خشبية",1,{"v":65,"d":"ر.س.‏ 65.00"},null,{"$f":"البيانات[[#This Row],[المقاس]]*البيانات[[#This Row],[التكلفة المقدرة]]","v":{"v":65,"d":"ر.س.‏ 65"}},{"$f":"البيانات[[#This Row],[المقاس]]*البيانات[[#This Row],[التكلفة الفعلية]]","v":{"v":0,"d":"ر.س.‏ 0"}}]
[null,"أشياء إضافية","الأشياء الإضافية: وحدة تسخين فوري للمياه قياسية",1,{"v":120,"d":"ر.س.‏ 120.00"},null,{"$f":"البيانات[[#This Row],[المقاس]]*البيانات[[#This Row],[التكلفة المقدرة]]","v":{"v":120,"d":"ر.س.‏ 120"}},{"$f":"البيانات[[#This Row],[المقاس]]*البيانات[[#This Row],[التكلفة الفعلية]]","v":{"v":0,"d":"ر.س.‏ 0"}}]
[null,"أشياء إضافية","الأشياء الإضافية: وحدة توزيع الصابون",1,{"v":40,"d":"ر.س.‏ 40.00"},null,{"$f":"البيانات[[#This Row],[المقاس]]*البيانات[[#This Row],[التكلفة المقدرة]]","v":{"v":40,"d":"ر.س.‏ 40"}},{"$f":"البيانات[[#This Row],[المقاس]]*البيانات[[#This Row],[التكلفة الفعلية]]","v":{"v":0,"d":"ر.س.‏ 0"}}]
[null,"الصنابير","الصنبور: تصميم قياسي بذراع رفع",1,{"v":130,"d":"ر.س.‏ 130.00"},null,{"$f":"البيانات[[#This Row],[المقاس]]*البيانات[[#This Row],[التكلفة المقدرة]]","v":{"v":130,"d":"ر.س.‏ 130"}},{"$f":"البيانات[[#This Row],[المقاس]]*البيانات[[#This Row],[التكلفة الفعلية]]","v":{"v":0,"d":"ر.س.‏ 0"}}]
[null,"الأرضيات","حوض الصنوبر (بمقاس مُحدد بوحدة القدم المربع)",165,{"v":3.5,"d":"ر.س.‏ 3.50"},null,{"$f":"البيانات[[#This Row],[المقاس]]*البيانات[[#This Row],[التكلفة المقدرة]]","v":{"v":577.5,"d":"ر.س.‏ 578"}},{"$f":"البيانات[[#This Row],[المقاس]]*البيانات[[#This Row],[التكلفة الفعلية]]","v":{"v":0,"d":"ر.س.‏ 0"}}]
[null,"أجهزة غسيل الملابس","الغسالة: مقياس قياسي",1,{"v":500,"d":"ر.س.‏ 500.00"},null,{"$f":"البيانات[[#This Row],[المقاس]]*البيانات[[#This Row],[التكلفة المقدرة]]","v":{"v":500,"d":"ر.س.‏ 500"}},{"$f":"البيانات[[#This Row],[المقاس]]*البيانات[[#This Row],[التكلفة الفعلية]]","v":{"v":0,"d":"ر.س.‏ 0"}}]
[null,"أجهزة غسيل الملابس","المجفف: مقياس قياسي",1,{"v":375,"d":"ر.س.‏ 375.00"},null,{"$f":"البيانات[[#This Row],[المقاس]]*البيانات[[#This Row],[التكلفة المقدرة]]","v":{"v":375,"d":"ر.س.‏ 375"}},{"$f":"البيانات[[#This Row],[المقاس]]*البيانات[[#This Row],[التكلفة الفعلية]]","v":{"v":0,"d":"ر.س.‏ 0"}}]
[null,"الإضاءة","الإضاءة: إضاءة جانبية",4,{"v":35,"d":"ر.س.‏ 35.00"},null,{"$f":"البيانات[[#This Row],[المقاس]]*البيانات[[#This Row],[التكلفة المقدرة]]","v":{"v":140,"d":"ر.س.‏ 140"}},{"$f":"البيانات[[#This Row],[المقاس]]*البيانات[[#This Row],[التكلفة الفعلية]]","v":{"v":0,"d":"ر.س.‏ 0"}}]
[null,"الثلاجات","الثلاجة: تصميم فاخر مستقل",1,{"v":1200,"d":"ر.س.‏ 1,200.00"},null,{"$f":"البيانات[[#This Row],[المقاس]]*البيانات[[#This Row],[التكلفة المقدرة]]","v":{"v":1200,"d":"ر.س.‏ 1,200"}},{"$f":"البيانات[[#This Row],[المقاس]]*البيانات[[#This Row],[التكلفة الفعلية]]","v":{"v":0,"d":"ر.س.‏ 0"}}]
[null,"الأحواض","تصميم فاخر بحوضين من الفولاذ المقاوم للصدأ",1,{"v":125,"d":"ر.س.‏ 125.00"},null,{"$f":"البيانات[[#This Row],[المقاس]]*البيانات[[#This Row],[التكلفة المقدرة]]","v":{"v":125,"d":"ر.س.‏ 125"}},{"$f":"البيانات[[#This Row],[المقاس]]*البيانات[[#This Row],[التكلفة الفعلية]]","v":{"v":0,"d":"ر.س.‏ 0"}}]
[null,"التهوية","وحدة الشفط: تصميم قياسي بأنابيب للتهوية",1,{"v":180,"d":"ر.س.‏ 180.00"},null,{"$f":"البيانات[[#This Row],[المقاس]]*البيانات[[#This Row],[التكلفة المقدرة]]","v":{"v":180,"d":"ر.س.‏ 180"}},{"$f":"البيانات[[#This Row],[المقاس]]*البيانات[[#This Row],[التكلفة الفعلية]]","v":{"v":0,"d":"ر.س.‏ 0"}}]
[null,"الجدران","لوح جداري (بمقاس مُحدد بالقدم المربع)",70,{"v":2,"d":"ر.س.‏ 2.00"},null,{"$f":"البيانات[[#This Row],[المقاس]]*البيانات[[#This Row],[التكلفة المقدرة]]","v":{"v":140,"d":"ر.س.‏ 140"}},{"$f":"البيانات[[#This Row],[المقاس]]*البيانات[[#This Row],[التكلفة الفعلية]]","v":{"v":0,"d":"ر.س.‏ 0"}}]
[null,"النوافذ","بتصميم جرار",2,{"v":120,"d":"ر.س.‏ 120.00"},null,{"$f":"البيانات[[#This Row],[المقاس]]*البيانات[[#This Row],[التكلفة المقدرة]]","v":{"v":240,"d":"ر.س.‏ 240"}},{"$f":"البيانات[[#This Row],[المقاس]]*البيانات[[#This Row],[التكلفة الفعلية]]","v":{"v":0,"d":"ر.س.‏ 0"}}]
[null,"أخرى",{"$nulls":4},{"$f":"البيانات[[#This Row],[المقاس]]*البيانات[[#This Row],[التكلفة المقدرة]]","v":{"v":0,"d":"ر.س.‏ 0"}},{"$f":"البيانات[[#This Row],[المقاس]]*البيانات[[#This Row],[التكلفة الفعلية]]","v":{"v":0,"d":"ر.س.‏ 0"}}]
[null,"الإجمالي",null,null,{"$f":"SUBTOTAL(109,البيانات[التكلفة المقدرة])","v":{"v":4014,"d":"ر.س.‏ 4,014.00"}},{"$f":"SUBTOTAL(109,البيانات[التكلفة الفعلية])","v":{"v":0,"d":"ر.س.‏ 0.00"}},{"$f":"SUBTOTAL(109,البيانات[إجمالي التكلفة المقدرة])","v":{"v":5375,"d":"ر.س.‏ 5,375.00"}},{"$f":"SUBTOTAL(109,البيانات[إجمالي التكلفة الفعلية])","v":{"v":0,"d":"ر.س.‏ 0.00"}}]
[null,"الإجمالي الفرعي",{"$nulls":4},{"$f":"SUBTOTAL(109,البيانات[إجمالي التكلفة المقدرة])","v":{"v":5375,"d":"ر.س.‏ 5,375.00"}},{"$f":"SUBTOTAL(109,البيانات[إجمالي التكلفة الفعلية])","v":{"v":0,"d":"ر.س.‏ 0.00"}}]
[null,"تكاليف غير متوقعة - 30%",{"$nulls":4},{"$f":"G26*0.3","v":{"v":1612.5,"d":"ر.س.‏ 1,612.50"}},{"$f":"H26*0.3","v":{"v":0,"d":"ر.س.‏ 0.00"}}]
[null,"الإجمالي",{"$nulls":4},{"$f":"SUM(G26:G27)","v":{"v":6987.5,"d":"ر.س.‏ 6,987.50"}},{"$f":"SUM(H26:H27)","v":{"v":0,"d":"ر.س.‏ 0.00"}}]